fUST/lending_fUST_20241008
["ID","MTS","AMOUNT","RATE_DAILY","PERIOD"]
[340032721,1728339052031,-500.21915935,0.00038356,120]
[340032722,1728339052041,-500.0,0.00038356,120]
[340032723,1728339052051,-500.0,0.00038356,120]
[340032724,1728339052060,-500.0,0.00038356,120]
[340032725,1728339052069,-500.0,0.00038356,120]
[340032726,1728339052079,-500.0,0.00038356,120]
[340032727,1728339052090,-500.0,0.00038356,120]
[340032728,1728339052100,-500.0,0.00038356,120]
[340032729,1728339052110,-587.93,0.00038356,120]
[340032730,1728339052119,-500.0,0.00038356,120]
[340032731,1728339052129,-257.975748,0.00038356,14]
[340032732,1728339052139,-257.975748,0.00038356,14]
[340032733,1728339052149,-500.0,0.00038356,120]
[340032734,1728339052158,-257.975748,0.00038356,14]
[340032735,1728339052169,-257.975748,0.00038356,14]
[340032736,1728339052179,-257.975748,0.00038356,14]
[340032737,1728339052189,-500.0,0.00038356,120]
[340032738,1728339052198,-257.975748,0.00038356,14]
[340032739,1728339052208,-257.975748,0.00038356,14]
[340032740,1728339052218,-257.975748,0.00038356,14]
[340032741,1728339052228,-257.975748,0.00038356,14]
[340032742,1728339052238,-569.87,0.00038356,120]
[340032743,1728339052248,-257.975748,0.00038356,14]
[340032744,1728339052258,-257.975748,0.00038356,14]
[340032745,1728339052269,-915.797977,0.00038356,14]
[340032746,1728339052279,-257.975748,0.00038356,14]
[340032747,1728339052289,-915.797977,0.00038356,14]
[340032748,1728339052299,-500.36826614,0.00038356,120]
[340032749,1728339052309,-257.975748,0.00038356,14]
[340032750,1728339052320,-915.797977,0.00038356,14]
[340032751,1728339052330,-257.975748,0.00038356,14]
[340032752,1728339052339,-500.0,0.00038356,120]
[340032753,1728339052349,-257.975748,0.00038356,14]
[340032754,1728339052358,-915.797977,0.00038356,14]
[340032755,1728339052368,-257.975748,0.00038356,14]
[340032756,1728339052378,-915.797977,0.00038356,14]
[340032757,1728339052388,-915.797977,0.00038356,14]
[340032758,1728339052398,-257.975748,0.00038356,14]
[340032759,1728339052407,-915.797977,0.00038356,14]
[340032760,1728339052416,-257.975758,0.00038356,14]
[340032761,1728339052426,-915.797977,0.00038356,14]
[340032762,1728339052436,-915.797977,0.00038356,14]
[340032763,1728339052445,-500.0,0.00038356,120]
[340032764,1728339052457,-915.797977,0.00038356,14]
[340032765,1728339052467,-915.797977,0.00038356,14]
[340032766,1728339052477,-915.797977,0.00038356,14]
[340032767,1728339052487,-176.39531685,0.00038356,120]
[340032768,1728339052498,-915.797977,0.00038356,14]
[340032769,1728339052508,-915.797977,0.00038356,14]
[340032770,1728339052519,-915.797977,0.00038356,14]
[340032771,1728339052529,-915.797977,0.00038356,14]
[340032772,1728339052539,-915.797977,0.00038356,14]
[340032773,1728339052548,-915.797978,0.00038356,14]
[340032774,1728339052558,-869.698135,0.00038356,14]
[340032775,1728339052568,-869.698135,0.00038356,14]
[340032776,1728339052578,-869.698135,0.00038356,14]
[340032777,1728339052588,-869.698135,0.00038356,14]
[340032778,1728339052598,-869.698135,0.00038356,14]
[340032779,1728339052607,-869.698135,0.00038356,14]
[340032780,1728339052617,-869.698135,0.00038356,14]
[340032781,1728339052627,-869.698135,0.00038356,14]
[340032782,1728339052636,-869.698135,0.00038356,14]
[340032783,1728339052646,-620.770637,0.00038356,14]
[340032784,1728339052656,-500.0,0.00038356,120]
[340032785,1728339052665,-869.698135,0.00038356,14]
[340032786,1728339052675,-620.770637,0.00038356,14]
[340032787,1728339052685,-869.698135,0.00038356,14]
[340032788,1728339052694,-620.770637,0.00038356,14]
[340032789,1728339052704,-620.770637,0.00038356,14]
[340032790,1728339052714,-869.698135,0.00038356,14]
[340032791,1728339052724,-620.770637,0.00038356,14]
[340032792,1728339052733,-562.44464436,0.00038356,120]
[340032793,1728339052743,-869.698135,0.00038356,14]
[340032794,1728339052752,-620.770637,0.00038356,14]
[340032795,1728339052762,-869.698135,0.00038356,14]
[340032796,1728339052772,-620.770637,0.00038356,14]
[340032797,1728339052782,-500.0,0.00038356,120]
[340032798,1728339052792,-869.698135,0.00038356,14]
[340032799,1728339052802,-620.770637,0.00038356,14]
[340032800,1728339052811,-154.75785747,0.00038356,14]
[340032801,1728339052963,-548.53406688,0.00038326,10]
[340032802,1728339052975,-613.5885,0.00038326,10]
[340032803,1728339052988,-411.11179919,0.00038326,10]
[340032804,1728339052999,-1173.6576485,0.00038326,10]
[340032805,1728339053011,-3821.41430996,0.00038326,10]
[340032806,1728339053022,-300.78721,0.00038326,10]
[340032814,1728339801320,689.778,0.00030136,120]
[340032856,1728340232286,-213.50938959,0.000123,2]
[340032857,1728340232296,-300.0,0.00012499,2]
[340032858,1728340232306,-300.0,0.00012499,2]
[340032859,1728340232317,-10113.21867658,0.000125,2]
[340032860,1728340232329,-808.56153664,0.000125,2]
[340032861,1728340232339,-5266.4234517,0.0001335,2]
[340032862,1728340232349,-500.0,0.00013373,2]
[340032863,1728340232359,-501.29766461,0.00013373,2]
[340032864,1728340232368,-13164.37717573,0.000134,2]
[340032865,1728340232378,-300.0,0.00013714,2]
[340032866,1728340232387,-300.0,0.00013749,2]
[340032867,1728340232397,-1287.07176173,0.00014,4]
[340032868,1728340232407,-413.662413,0.00014092,2]
[340032869,1728340232417,-266.19374317,0.00014114,2]
[340032870,1728340232426,-200.0,0.00015,7]
[340032871,1728340232436,-228.63932221,0.00016,2]
[340032872,1728340232445,-1760.51182393,0.00017518,2]
[340032873,1728340232455,-500.0,0.00017518,2]
[340032874,1728340232468,-500.0,0.00017518,2]
[340032875,1728340232478,-1059.85401186,0.000176,2]
[340032876,1728340232488,-249.030509,0.00018,2]
[340032877,1728340232498,-500.0,0.00018888,2]
[340032878,1728340232508,-4745.0912186,0.0002,5]
[340032879,1728340232519,-61089.49688254,0.0002,2]
[340032880,1728340232529,-230.82821677,0.000209,2]
[340032881,1728340232539,-454.93302666,0.00021,2]
[340032882,1728340232549,-507.04058415,0.000212,2]
[340032883,1728340232559,-829.65873228,0.00022,7]
[340032884,1728340232569,-19941.72996039,0.0002201,16]
[340032885,1728340232582,-1775.83389477,0.0002259,2]
[340032886,1728340232591,-250.0,0.00023265,2]
[340032887,1728340232604,-438.4648187,0.00023344,2]
[340032888,1728340232613,-250.0,0.00023676,2]
[340032889,1728340232623,-250.0,0.00023741,2]
[340032890,1728340232632,-250.0,0.00023806,2]
[340032891,1728340232642,-250.0,0.00023871,2]
[340032892,1728340232651,-250.0,0.00023936,2]
[340032893,1728340232661,-250.0,0.00024001,2]
[340032894,1728340232670,-250.0,0.00024066,2]
[340032895,1728340232680,-250.0,0.00024131,2]
[340032896,1728340232690,-250.0,0.00024196,2]
[340032897,1728340232701,-250.0,0.00024261,2]
[340032898,1728340232713,-249.030509,0.00024262,2]
[340032899,1728340232724,-250.0,0.00024326,2]
[340032900,1728340232734,-250.0,0.00024391,2]
[340032901,1728340232744,-250.0,0.00024456,2]
[340032902,1728340232754,-250.0,0.00024521,2]
[340032903,1728340232764,-250.0,0.00024586,2]
[340032904,1728340232774,-250.0,0.0002465,2]
[340032905,1728340232784,-250.0,0.00024715,2]
[340032906,1728340232795,-250.0,0.0002478,2]
[340032907,1728340232805,-250.0,0.00024845,2]
[340032908,1728340232815,-250.0,0.0002491,2]
[340032909,1728340232825,-230.82821673,0.00025237,2]
[340032910,1728340232839,-3000.0,0.00025271,2]
[340032911,1728340232848,-24900.0,0.00025419,2]
[340032912,1728340232858,-556.79355992,0.00025473,2]
[340032913,1728340232867,-500.0,0.00025473,2]
[340032914,1728340232876,-500.0,0.00025473,2]
[340032915,1728340232886,-500.0,0.00025473,2]
[340032916,1728340232897,-500.0,0.00025473,2]
[340032917,1728340232909,-500.0,0.00025473,2]
[340032918,1728340232918,-500.0,0.00025473,2]
[340032919,1728340232934,-500.0,0.00025473,2]
[340032920,1728340232945,-508.87933556,0.00025473,2]
[340032921,1728340232955,-163.226981,0.00025711,2]
[340032922,1728340232965,-163.226981,0.00025729,2]
[340032923,1728340232974,-163.226981,0.00025748,2]
[340032924,1728340232984,-163.226981,0.00025766,2]
[340032925,1728340232995,-163.226981,0.00025784,2]
[340032926,1728340233006,-163.226981,0.00025803,2]
[340032927,1728340233017,-163.226981,0.00025821,2]
[340032928,1728340233028,-163.226981,0.00025839,2]
[340032929,1728340233039,-502.98971341,0.0002674,2]
[340032930,1728340233048,-500.0,0.0002674,2]
[340032931,1728340233058,-500.54868513,0.00026842,2]
[340032932,1728340233067,-500.0,0.0002708,2]
[340032933,1728340233079,-500.36366789,0.0002708,2]
[340032934,1728340233090,-500.0,0.00027083,2]
[340032935,1728340233100,-500.0,0.0002728,2]
[340032936,1728340233110,-500.0,0.0002728,2]
[340032937,1728340233119,-666.72010873,0.00027299,3]
[340032938,1728340233129,-500.0,0.00027407,5]
[340032939,1728340233139,-500.0,0.00028071,5]
[340032940,1728340233149,-500.0,0.00028777,5]
[340032941,1728340233158,-230.82821673,0.00029573,2]
[340032942,1728340233168,-496.83246907,0.0003,7]
[340032943,1728340233178,-249.030509,0.00030525,2]
[340032944,1728340233187,-172.604195,0.00030606,2]
[340032945,1728340233197,-170.741,0.00030623,26]
[340032946,1728340233207,-485.28467841,0.00031239,2]
[340032947,1728340233216,-929.34739016,0.00032877,2]
[340032948,1728340233226,-1111.0,0.0003288,10]
[340032949,1728340233235,-230.82821673,0.0003391,2]
[340032950,1728340233245,-150.0,0.00034548,14]
[340032951,1728340233255,-150.0,0.00034548,14]
[340032952,1728340233264,-200.0,0.00034548,14]
[340032953,1728340233274,-1111.0,0.00034849,120]
[340032954,1728340233284,-1333.31080108,0.00035246,2]
[340032955,1728340233295,-500.0,0.00035615,7]
[340032956,1728340233304,-279.70999502,0.00035615,7]
[340032957,1728340233315,-11142.21,0.00035616,10]
[340032958,1728340233324,-21247.46,0.00035616,10]
[340032959,1728340233337,-17706.21,0.00035616,10]
[340032960,1728340233347,-150.0,0.00035673,5]
[340032961,1728340233359,-525.945,0.00035884,2]
[340032962,1728340233369,-1218.0,0.00035884,2]
[340032963,1728340233379,-250.0,0.00036221,5]
[340032964,1728340233390,-350.0,0.00036768,5]
[340032965,1728340233400,-249.030509,0.00036787,2]
[340032966,1728340233411,-802.66373329,0.00036822,2]
[340032967,1728340233421,-450.0,0.00037316,5]
[340032968,1728340233432,-5912.59385401,0.00037395,2]
[340032969,1728340233445,-5912.59385401,0.00037644,2]
[340032970,1728340233455,-550.0,0.00037864,5]
[340032971,1728340233465,-5912.59385401,0.00038034,2]
[340032972,1728340233475,-153.68125924,0.00038095,24]
[340032973,1728340233485,-150.0,0.00038192,2]
[340032974,1728340233496,-786.81574501,0.00038226,2]
[340032975,1728340233506,-193.38070615,0.00038226,2]
[340032976,1728340233516,-5912.59385402,0.00038231,2]
[340032977,1728340233525,-230.82821673,0.00038246,2]
[340032978,1728340233535,-28065.8776925,0.00038276,5]
[340032979,1728340233545,-1690.79111442,0.00038276,5]
[340032980,1728340233555,-1018.600431,0.00038296,14]
[340032981,1728340233565,-1018.600431,0.00038296,14]
[340032982,1728340233574,-151.0,0.00038296,14]
[340032983,1728340233586,-151.0,0.00038296,14]
[340032984,1728340233597,-151.0,0.00038296,7]
[340032985,1728340233607,-151.0,0.00038296,14]
[340032986,1728340233617,-13333.47811084,0.00038296,5]
[340032987,1728340233631,-14732.39958166,0.00038296,5]
[340032988,1728340233641,-1690.79111442,0.00038296,5]
[340032989,1728340233651,-20754.281267,0.00038346,5]
[340032997,1728340238532,-500.0,0.00017518,2]
[340032998,1728340238542,-234.46958382,0.00018888,2]
[340032999,1728340238557,-265.53041618,0.00018888,2]
[340033000,1728340238567,-355.78083694,0.00019999,2]
[340033001,1728340238579,-500.0,0.00019999,2]
[340033002,1728340238598,-239.29515128,0.00019999,2]
[340033003,1728340238610,-415.58769642,0.00019999,2]
[340033004,1728340238620,-2594.35375338,0.00038346,5]
[340033005,1728340238633,-670.24779425,0.00038346,5]
[340033006,1728340238645,-12950.43594413,0.00038346,5]
[340033007,1728340238688,-39201.71291736,0.00038346,5]
[340033015,1728340240477,-8026.60140128,0.00038346,5]
[340033016,1728340240487,-5072.37334326,0.00038346,5]
[340033017,1728340240497,-1018.600431,0.00038346,14]
[340033018,1728340240508,-1018.600431,0.00038346,14]
[340033019,1728340240519,-151.0,0.00038346,14]
[340033021,1728340240529,-151.0,0.00038346,14]
[340033023,1728340240539,-151.0,0.00038346,7]
[340033024,1728340240551,-151.0,0.00038346,14]
[340033025,1728340240561,-151.0,0.00038346,14]
[340033026,1728340240572,-151.0,0.00038346,14]
[340033027,1728340240583,-14755.18,0.00038346,10]
[340033028,1728340240594,-1000.0,0.0003835,90]
[340033029,1728340240605,-500.0,0.00038355,30]
[340033030,1728340240617,-589.69,0.00038356,120]
[340033031,1728340240630,-500.0,0.00038356,120]
[340033032,1728340240639,-500.0,0.00038356,120]
[340033033,1728340240649,-500.0,0.00038356,120]
[340033034,1728340240659,-500.0,0.00038356,120]
[340033035,1728340240670,-500.0,0.00038356,120]
[340033036,1728340240680,-500.0,0.00038356,120]
[340033037,1728340240691,-500.0,0.00038356,120]
[340033038,1728340240703,-598.79,0.00038356,120]
[340033039,1728340240716,-500.0,0.00038356,30]
[340033040,1728340240730,-500.0,0.00038356,120]
[340033041,1728340240743,-463.75,0.00038356,7]
[340033042,1728340240754,-500.0,0.00038356,120]
[340033043,1728340240764,-500.0,0.00038356,120]
[340033044,1728340240775,-314.9,0.00038356,120]
[340033045,1728340240785,-612.57634593,0.00038356,120]
[340033046,1728340240796,-337.17,0.00038356,2]
[340033047,1728340240806,-500.0,0.00038356,90]
[340033048,1728340240819,-500.0,0.00038356,120]
[340033049,1728340240829,-500.0,0.00038356,120]
[340033050,1728340240840,-527.94478923,0.00038356,120]
[340033051,1728340240850,-500.0,0.00038356,7]
[340033052,1728340240861,-500.0,0.00038356,120]
[340033053,1728340240872,-500.0,0.00038356,120]
[340033054,1728340240883,-500.0,0.00038356,120]
[340033055,1728340240894,-159.08,0.00038356,120]
[340033056,1728340240905,-500.0,0.00038356,120]
[340033057,1728340240916,-500.0,0.00038356,120]
[340033058,1728340240928,-189.01,0.00038356,120]
[340033059,1728340240940,-500.0,0.00038356,120]
[340033060,1728340240951,-353.06,0.00038356,120]
[340033061,1728340240962,-513.05,0.00038356,120]
[340033062,1728340240973,-616.19,0.00038356,120]
[340033063,1728340240985,-500.0,0.00038356,120]
[340033064,1728340240996,-500.0,0.00038356,120]
[340033065,1728340241006,-500.0,0.00038356,120]
[340033066,1728340241018,-500.0,0.00038356,90]
[340033067,1728340241029,-297.21,0.00038356,120]
[340033068,1728340241041,-500.0,0.00038356,120]
[340033069,1728340241051,-500.0,0.00038356,120]
[340033070,1728340241063,-500.0,0.00038356,120]
[340033071,1728340241074,-267.56,0.00038356,120]
[340033072,1728340241085,-500.0,0.00038356,120]
[340033073,1728340241096,-500.0,0.00038356,120]
[340033074,1728340241106,-500.0,0.00038356,120]
[340033075,1728340241118,-151.0,0.00038356,14]
[340033076,1728340241129,-354.82,0.00038356,120]
[340033077,1728340241141,-500.0,0.00038356,120]
[340033078,1728340241152,-500.0,0.00038356,120]
[340033079,1728340241163,-218.634027,0.00038356,14]
[340033080,1728340241172,-151.0,0.00038356,14]
[340033081,1728340241181,-500.0,0.00038356,120]
[340033082,1728340241191,-516.1,0.00038356,120]
[340033083,1728340241200,-500.0,0.00038356,120]
[340033084,1728340241210,-500.0,0.00038356,120]
[340033085,1728340241219,-500.0,0.00038356,120]
[340033086,1728340241228,-276.57,0.00038356,120]
[340033087,1728340241238,-154.43,0.00038356,120]
[340033088,1728340241247,-500.0,0.00038356,120]
[340033089,1728340241261,-198.89,0.00038356,120]
[340033090,1728340241271,-447.0,0.00038356,120]
[340033091,1728340241282,-500.0,0.00038356,120]
[340033092,1728340241295,-500.0,0.00038356,120]
[340033093,1728340241306,-500.0,0.00038356,120]
[340033094,1728340241316,-154.2560467,0.00038356,120]
[340033095,1728340241330,-345.7439533,0.00038356,120]
[340033096,1728340241342,-500.0,0.00038356,120]
[340033097,1728340241352,-500.0,0.00038356,120]
[340033098,1728340241363,-224.71,0.00038356,120]
[340033099,1728340241374,-500.0,0.00038356,120]
[340033100,1728340241384,-500.0,0.00038356,120]
[340033101,1728340241394,-500.0,0.00038356,120]
[340033102,1728340241404,-500.0,0.00038356,2]
[340033103,1728340241415,-500.0,0.00038356,120]
[340033104,1728340241426,-500.0,0.00038356,120]
[340033105,1728340241436,-500.0,0.00038356,120]
[340033106,1728340241447,-500.0,0.00038356,120]
[340033107,1728340241457,-472.92,0.00038356,120]
[340033108,1728340241468,-500.0,0.00038356,120]
[340033109,1728340241596,-500.0,0.00038356,120]
[340033110,1728340241608,-236.23,0.00038356,120]
[340033111,1728340241619,-501.67501594,0.00038356,120]
[340033112,1728340241628,-500.0,0.00038356,120]
[340033113,1728340241638,-500.0,0.00038356,120]
[340033114,1728340241647,-500.0,0.00038356,120]
[340033115,1728340241657,-500.0,0.00038356,120]
[340033116,1728340241667,-500.0,0.00038356,120]
[340033117,1728340241676,-500.0,0.00038356,120]
[340033118,1728340241687,-500.0,0.00038356,120]
[340033119,1728340241697,-500.0,0.00038356,120]
[340033120,1728340241707,-544.12,0.00038356,120]
[340033121,1728340241720,-500.0,0.00038356,120]
[340033122,1728340241731,-151.0,0.00038356,14]
[340033123,1728340241743,-151.0,0.00038356,14]
[340033124,1728340241754,-500.0,0.00038356,120]
[340033125,1728340241764,-215.88,0.00038356,120]
[340033126,1728340241775,-606.13,0.00038356,120]
[340033127,1728340241785,-500.0,0.00038356,120]
[340033128,1728340241795,-500.0,0.00038356,120]
[340033129,1728340241805,-500.0,0.00038356,120]
[340033130,1728340241814,-151.0,0.00038356,14]
[340033131,1728340241824,-500.0,0.00038356,120]
[340033132,1728340241834,-500.0,0.00038356,30]
[340033133,1728340241848,-500.23550126,0.00038356,120]
[340033134,1728340241857,-500.0,0.00038356,120]
[340033135,1728340241867,-341.96,0.00038356,120]
[340033136,1728340241877,-500.0,0.00038356,120]
[340033137,1728340241887,-500.0,0.00038356,120]
[340033138,1728340241897,-500.0,0.00038356,120]
[340033139,1728340241906,-151.0,0.00038356,14]
[340033140,1728340241915,-151.0,0.00038356,14]
[340033141,1728340241925,-516.66,0.00038356,120]
[340033142,1728340241935,-151.0,0.00038356,14]
[340033143,1728340241946,-151.0,0.00038356,14]
[340033144,1728340241957,-286.4,0.00038356,120]
[340033145,1728340241968,-421.75,0.00038356,120]
[340033146,1728340241977,-540.98,0.00038356,120]
[340033147,1728340241986,-151.0,0.00038356,14]
[340033148,1728340241996,-151.0,0.00038356,14]
[340033149,1728340242005,-151.0,0.00038356,14]
[340033150,1728340242014,-151.0,0.00038356,14]
[340033151,1728340242023,-296.55,0.00038356,120]
[340033152,1728340242032,-500.0,0.00038356,120]
[340033153,1728340242042,-500.0,0.00038356,120]
[340033154,1728340242051,-500.0,0.00038356,120]
[340033155,1728340242060,-500.0,0.00038356,120]
[340033156,1728340242070,-500.0,0.00038356,120]
[340033157,1728340242079,-500.0,0.00038356,120]
[340033158,1728340242094,-500.0,0.00038356,120]
[340033159,1728340242107,-500.0,0.00038356,120]
[340033160,1728340242116,-500.0,0.00038356,120]
[340033161,1728340242126,-500.0,0.00038356,120]
[340033162,1728340242136,-500.0,0.00038356,120]
[340033163,1728340242146,-500.0,0.00038356,120]
[340033164,1728340242155,-239.938042,0.00038356,14]
[340033165,1728340242165,-239.938042,0.00038356,14]
[340033166,1728340242174,-500.0,0.00038356,120]
[340033167,1728340242183,-203.07,0.00038356,120]
[340033168,1728340242193,-239.938042,0.00038356,14]
[340033169,1728340242203,-239.938042,0.00038356,14]
[340033170,1728340242212,-1042.090624,0.00038356,14]
[340033171,1728340242222,-1042.090624,0.00038356,14]
[340033172,1728340242231,-1042.090624,0.00038356,14]
[340033173,1728340242241,-1042.090624,0.00038356,14]
[340033174,1728340242253,-203.22,0.00038356,120]
[340033175,1728340242266,-500.0,0.00038356,120]
[340033176,1728340242275,-500.0,0.00038356,120]
[340033177,1728340242285,-500.0,0.00038356,120]
[340033178,1728340242295,-523.56,0.00038356,120]
[340033179,1728340242304,-180.456926,0.00038356,14]
[340033180,1728340242314,-180.456926,0.00038356,14]
[340033181,1728340242323,-500.0,0.00038356,120]
[340033182,1728340242335,-180.456926,0.00038356,14]
[340033183,1728340242346,-180.456926,0.00038356,14]
[340033184,1728340242356,-587.18986,0.00038356,14]
[340033185,1728340242366,-587.18986,0.00038356,14]
[340033186,1728340242376,-500.0,0.00038356,120]
[340033187,1728340242386,-500.0,0.00038356,120]
[340033188,1728340242395,-587.18986,0.00038356,14]
[340033189,1728340242405,-587.18986,0.00038356,14]
[340033190,1728340242415,-591.32,0.00038356,120]
[340033191,1728340242425,-500.0,0.00038356,120]
[340033192,1728340242434,-500.0,0.00038356,120]
[340033193,1728340242443,-500.0,0.00038356,120]
[340033194,1728340242452,-184.26,0.00038356,120]
[340033195,1728340242461,-500.0,0.00038356,120]
[340033196,1728340242471,-500.0,0.00038356,120]
[340033197,1728340242480,-500.0,0.00038356,120]
[340033198,1728340242490,-500.0,0.00038356,120]
[340033199,1728340242500,-500.0,0.00038356,120]
[340033200,1728340242509,-500.0,0.00038356,120]
[340033201,1728340242518,-500.0,0.00038356,120]
[340033202,1728340242528,-500.0,0.00038356,120]
[340033203,1728340242537,-500.0,0.00038356,120]
[340033204,1728340242547,-500.0,0.00038356,120]
[340033205,1728340242556,-500.0,0.00038356,120]
[340033206,1728340242565,-500.0,0.00038356,120]
[340033207,1728340242574,-500.0,0.00038356,120]
[340033208,1728340242584,-254.61,0.00038356,120]
[340033209,1728340242596,-500.0,0.00038356,120]
[340033210,1728340242606,-500.0,0.00038356,120]
[340033211,1728340242615,-500.0,0.00038356,120]
[340033212,1728340242624,-500.0,0.00038356,120]
[340033213,1728340242633,-500.0,0.00038356,120]
[340033214,1728340242643,-500.0,0.00038356,120]
[340033215,1728340242652,-500.0,0.00038356,120]
[340033216,1728340242661,-597.19189111,0.00038356,120]
[340033217,1728340242672,-500.0,0.00038356,120]
[340033218,1728340242682,-258.10284793,0.00038356,120]
[340033219,1728340242691,-500.0,0.00038356,120]
[340033220,1728340242701,-151.0,0.00038356,14]
[340033221,1728340242710,-151.0,0.00038356,14]
[340033222,1728340242720,-500.0,0.00038356,120]
[340033223,1728340242730,-500.0,0.00038356,120]
[340033224,1728340242739,-575.05,0.00038356,120]
[340033225,1728340242749,-500.0,0.00038356,120]
[340033226,1728340242758,-500.0,0.00038356,120]
[340033227,1728340242768,-500.0,0.00038356,120]
[340033228,1728340242777,-500.0,0.00038356,120]
[340033229,1728340242786,-500.0,0.00038356,120]
[340033230,1728340242796,-500.0,0.00038356,120]
[340033231,1728340242806,-500.0,0.00038356,120]
[340033232,1728340242815,-500.0,0.00038356,120]
[340033233,1728340242824,-500.0,0.00038356,120]
[340033234,1728340242833,-500.0,0.00038356,120]
[340033235,1728340242845,-500.0,0.00038356,120]
[340033236,1728340242855,-500.0,0.00038356,120]
[340033237,1728340242864,-530.59,0.00038356,120]
[340033238,1728340242873,-500.0,0.00038356,120]
[340033239,1728340242882,-500.0,0.00038356,120]
[340033240,1728340242891,-500.0,0.00038356,120]
[340033241,1728340242900,-500.0,0.00038356,120]
[340033242,1728340242910,-534.528765,0.00038356,14]
[340033243,1728340242919,-534.528765,0.00038356,14]
[340033244,1728340242929,-589.04,0.00038356,120]
[340033245,1728340242941,-534.528765,0.00038356,14]
[340033246,1728340242951,-534.528765,0.00038356,14]
[340033247,1728340242960,-151.0,0.00038356,14]
[340033248,1728340242971,-151.0,0.00038356,14]
[340033249,1728340242981,-500.0,0.00038356,120]
[340033250,1728340242990,-500.0,0.00038356,120]
[340033251,1728340243001,-500.0,0.00038356,120]
[340033252,1728340243011,-589.73,0.00038356,120]
[340033253,1728340243020,-151.0,0.00038356,14]
[340033254,1728340243030,-523.62,0.00038356,120]
[340033255,1728340243039,-500.0,0.00038356,120]
[340033256,1728340243049,-151.0,0.00038356,14]
[340033257,1728340243060,-258.51,0.00038356,120]
[340033258,1728340243072,-599.85,0.00038356,120]
[340033259,1728340243083,-151.0,0.00038356,14]
[340033260,1728340243098,-151.0,0.00038356,14]
[340033261,1728340243109,-500.0,0.00038356,120]
[340033262,1728340243120,-500.0,0.00038356,120]
[340033263,1728340243131,-500.0,0.00038356,120]
[340033264,1728340243141,-500.0,0.00038356,120]
[340033265,1728340243153,-500.0,0.00038356,120]
[340033266,1728340243163,-151.0,0.00038356,14]
[340033267,1728340243173,-151.0,0.00038356,14]
[340033268,1728340243183,-606.45,0.00038356,120]
[340033269,1728340243195,-500.0,0.00038356,120]
[340033270,1728340243205,-389.76,0.00038356,120]
[340033271,1728340243214,-302.647425,0.00038356,14]
[340033272,1728340243224,-302.647425,0.00038356,14]
[340033273,1728340243233,-302.647425,0.00038356,14]
[340033274,1728340243245,-302.647425,0.00038356,14]
[340033275,1728340243255,-500.0,0.00038356,120]
[340033276,1728340243265,-381.15448939,0.00038356,120]
[340033277,1728340243275,-500.0,0.00038356,120]
[340033278,1728340243285,-500.0,0.00038356,120]
[340033279,1728340243295,-182.2,0.00038356,120]
[340033280,1728340243306,-500.0,0.00038356,120]
[340033281,1728340243315,-192.479763,0.00038356,14]
[340033282,1728340243325,-192.479763,0.00038356,14]
[340033283,1728340243335,-636.49,0.00038356,60]
[340033284,1728340243346,-192.479763,0.00038356,14]